bitfinex-derivatives/quotes_ETHF0:USTF0_20260303
["timestamp","ask_amount","ask_price","bid_price","bid_amount"]
[1772579500884,2.64388781,1996.5,1995.7,0.00511323]
[1772579505285,2.64388781,1996.5,1995.7,2.47612079]
[1772579507187,6.83305039,1996.9,1995.9,2.47100756]
[1772579507392,2.64388781,1996.9,1996.0,2.72149756]
[1772579507588,2.64388781,1997.1,1996.0,2.72149756]
[1772579507988,12.08716258,1997.2,1996.0,2.72149756]
[1772579507989,2.64388781,1996.9,1996.0,2.72149756]
[1772579509793,2.62147065,1996.7,1995.8,2.55720899]
[1772579510194,2.62147065,1996.7,1995.8,2.80770899]
[1772579510496,0.14717296,1997.8,1996.7,0.2504]
[1772579510692,2.62858675,1997.7,1996.7,0.2504]
[1772579510897,10.34946576,1997.8,1997.2,4.13823658]
[1772579511098,10.34946576,1997.8,1997.4,0.02010274]
[1772579511295,12.97093641,1997.8,1997.4,0.02510449]
[1772579511495,10.35316438,1997.8,1997.5,5.87114422]
[1772579511694,0.84317296,1998.0,1997.7,1.83234913]
[1772579511894,11.04546576,1998.0,1997.7,1.83234913]
[1772579512296,2.62147065,1998.5,1997.9,1.25285584]
[1772579512590,2.3192589,1998.4,1998.0,7.11432404]
[1772579512794,10.20770914,1998.4,1998.1,5.8614682]
[1772579512990,2.32467524,1998.4,1998.0,1.25285584]
[1772579513199,10.20770914,1998.4,1998.0,1.25285584]
[1772579513998,2.91495063,1998.2,1997.8,0.25025]
[1772579514998,10.2022928,1998.2,1997.8,1.5205315]
[1772579515297,2.92036697,1998.4,1997.8,1.5205315]
[1772579515498,13.13125375,1998.3,1997.8,1.5205315]
[1772579515700,2.92896095,1998.2,1997.8,0.25025]
[1772579516100,2.92896095,1998.2,1997.8,1.47920167]
[1772579516498,0.00541634,1998.4,1997.8,1.47920167]
[1772579517003,0.00541634,1998.4,1997.8,0.25025]
[1772579517004,2.91865553,1998.2,1997.8,0.25025]
[1772579517197,2.91865553,1998.2,1997.4,0.00500175]
[1772579517198,10.83665553,1998.2,1997.4,0.00500175]
[1772579517398,2.91865553,1998.0,1997.4,0.00500175]
[1772579518402,2.91950631,1997.8,1997.4,1.2198355]
[1772579518603,2.91950631,1997.8,1997.2,0.25033]
[1772579518604,2.91950631,1997.8,1997.2,1.46516375]
[1772579518802,13.12179911,1997.8,1997.3,7.04949434]
[1772579519003,13.12179911,1997.8,1997.3,1.21483375]
[1772579519604,13.12179911,1997.8,1997.3,1.21951944]
[1772579522000,2.90584524,1997.7,1997.2,0.25033]
[1772579522202,2.90584524,1997.7,1997.1,1.20823172]
[1772579522501,2.90584524,1997.4,1996.8,1.19695114]
[1772579522696,2.90584524,1997.4,1996.9,5.83154184]
[1772579523003,2.88984524,1997.4,1996.9,0.00404564]
[1772579523205,13.09580259,1997.3,1996.9,0.00404564]
[1772579523498,2.89350979,1997.3,1996.9,0.00404564]
[1772579524108,10.2022928,1997.5,1996.7,1.44734114]
[1772579524109,2.89434834,1997.1,1996.7,1.44734114]
[1772579524500,21.03864114,1997.5,1996.7,1.44734114]
[1772579524799,11.04840252,1997.4,1996.7,1.44734114]
[1772579525006,2.88593477,1997.3,1996.7,1.44734114]
[1772579525305,2.88593477,1997.3,1996.7,1.45120417]
[1772579525704,9.96950211,1997.5,1996.8,6.15967]
[1772579526015,0.00541634,1998.4,1997.7,0.25027]
[1772579526305,3.48969067,1998.2,1997.7,0.25027]
[1772579526709,12.2533782,1998.1,1997.4,8.64]
[1772579527006,12.26136632,1998.3,1997.5,5.89103847]
[1772579527306,12.26136632,1998.3,1997.6,0.06161999]
[1772579527903,8.76368753,1998.3,1997.7,0.07551831]
[1772579528109,16.91774171,1998.3,1997.7,0.07551831]
[1772579528309,8.76368753,1998.3,1997.7,0.07551831]
[1772579528710,11.64478381,1998.2,1997.7,0.07551831]
[1772579529007,8.15405418,1998.2,1997.7,0.07551831]
[1772579529212,3.6882702,1998.1,1997.6,0.25028]
[1772579529513,8.76368753,1998.1,1997.6,0.25028]
[1772579530200,3.6882702,1998.3,1997.6,0.25028]
[1772579530401,8.76368753,1998.2,1997.7,5.85212983]
[1772579530610,8.76368753,1998.2,1997.6,0.25028]
[1772579531211,8.76368753,1998.2,1997.7,5.85387943]
[1772579531412,8.76368753,1998.2,1997.6,0.25028]
[1772579531712,8.76368753,1998.2,1997.7,5.85405794]
[1772579531915,0.00541634,1998.4,1997.9,0.25024]
[1772579532114,3.70039126,1999.4,1998.4,0.25018]
[1772579532408,3.70039126,2000.9,1999.5,0.25004]
[1772579532614,3.70039126,2000.6,1999.6,2.1445797]
[1772579532807,6.14585,2001.3,1999.1,6.67162311]
[1772579532808,2.62147065,2000.4,1999.1,6.67162311]
[1772579533008,2.62147065,2000.3,1999.1,0.00370502]
[1772579533204,2.62147065,2000.1,1999.1,2.6092658]
[1772579533608,2.62147065,1999.9,1999.1,2.6092658]
[1772579534009,8.21817571,1999.8,1999.1,2.6092658]
[1772579534214,10.83964636,1999.8,1999.1,2.6092658]
[1772579534409,18.99370054,1999.8,1999.1,2.6092658]
[1772579534714,2.62147065,1999.7,1999.1,0.00370502]
[1772579534909,2.62147065,1999.3,1999.1,0.00370502]
[1772579535108,2.62147065,1999.3,1998.6,11.27656078]
[1772579535109,2.62147065,1999.3,1998.7,2.60556078]
[1772579535413,8.21817571,1999.2,1998.7,2.60556078]
[1772579536108,8.21817571,1999.2,1998.7,2.61024026]
[1772579536308,16.37222989,1999.2,1998.7,2.61024026]
[1772579536510,16.37222989,1999.2,1998.8,2.60556078]
[1772579536511,8.21817571,1999.2,1998.8,2.60556078]
[1772579537114,16.37222989,1999.2,1998.8,2.60556078]
[1772579537308,16.37222989,1999.2,1998.7,0.00467948]
[1772579537309,4.47163189,1999.2,1999.0,2.60556078]
[1772579537513,2.62147065,1999.8,1999.0,2.60556078]
[1772579537708,3.80448001,1999.6,1998.8,0.0632443]
[1772579538010,3.85017777,1999.9,1998.7,0.00467948]
[1772579538214,3.85017777,1999.5,1998.7,0.63639496]
[1772579538818,8.21817571,1999.4,1998.7,0.63639496]
[1772579539115,3.77200475,1999.7,1999.0,0.69881997]
[1772579539508,0.00446154,2000.4,1999.1,14.84519]
[1772579539509,7.50896101,1999.6,1999.1,14.84519]
[1772579539816,4.12388865,1999.9,1999.1,14.84519]
[1772579540017,7.50896101,1999.8,1999.1,14.84519]
[1772579540214,4.13101186,2000.4,1999.4,0.03634809]
[1772579540418,4.13101186,2000.4,1999.6,0.03634809]
[1772579540620,4.13101186,2000.4,1999.8,0.03634809]
[1772579540823,4.12655032,2000.9,2000.3,6.25314532]
[1772579541017,2.71071497,2001.5,1999.7,14.84832]
[1772579541018,4.09286171,2001.4,2000.2,8.699]
[1772579541212,4.09286171,2001.4,2000.3,0.62047676]
[1772579541421,4.09286171,2001.4,2000.2,8.701]
[1772579541617,4.09286171,2001.4,2000.2,9.32147676]
[1772579541818,4.09801745,2001.4,2000.2,8.70643678]
[1772579542018,4.09801745,2001.4,2000.2,9.36286608]
[1772579542320,4.09801745,2001.4,2000.3,0.6564293]
[1772579542521,4.09801745,2001.4,2000.4,0.64630685]
[1772579543218,4.09801745,2001.4,2000.6,0.55778747]
[1772579543219,0.00515574,2001.4,2000.6,0.55778747]
[1772579543419,4.11911033,2001.4,2000.2,9.52321425]
[1772579543618,4.11911033,2001.4,2000.3,0.55778747]
[1772579543923,4.11911033,2001.4,2000.2,8.96542678]
[1772579544223,4.11911033,2001.4,2000.3,0.54677059]
[1772579544522,4.11911033,2001.4,2000.4,0.54677059]
[1772579545022,0.33672249,2002.3,2001.3,6.14627]
[1772579545023,4.15400113,2002.3,2001.3,6.14627]
[1772579545321,4.15400113,2002.3,2001.0,6.60413626]
[1772579545521,4.15400113,2002.3,2001.2,6.14674]
[1772579545728,4.15400113,2002.3,2001.3,0.45685626]
[1772579546025,4.15400113,2002.3,2001.4,9.17430604]
[1772579546324,4.15840482,2002.3,2001.4,8.718]
[1772579546518,4.15840482,2002.3,2001.0,0.24988]
[1772579547124,4.17507108,2002.1,2001.0,0.24988]
[1772579548528,4.17507108,2002.1,2001.0,6.78044564]
[1772579548722,4.17507108,2002.1,2001.0,0.63310564]
[1772579548917,4.17507108,2002.1,2001.0,0.24988]
[1772579549321,4.06903048,2002.0,2000.8,8.724]
[1772579550730,4.06903048,2002.0,2000.8,9.29812778]
[1772579550932,4.00609387,2001.9,2000.8,9.29812778]
[1772579552029,4.00609387,2001.9,2000.8,8.724]
[1772579552430,8.008,2002.0,2000.5,0.68937915]
[1772579552431,4.00655124,2001.7,2000.5,0.68937915]
[1772579553127,4.00655124,2001.7,2000.7,0.69949204]
[1772579554833,4.00655124,2001.7,2000.6,0.24994]
[1772579556037,4.00655124,2001.7,2000.6,0.92598537]
[1772579557328,4.00655124,2001.7,2000.6,0.24994]
[1772579559731,4.00655124,2001.7,2000.2,0.67116769]
[1772579559732,4.25635124,2001.7,2000.2,0.67116769]
[1772579559939,3.97695208,2001.4,2000.2,0.00543678]
[1772579562139,3.97695208,2001.4,2000.2,0.63983675]
[1772579562736,3.97695208,2001.4,2000.3,0.24998]
[1772579562937,3.97695208,2001.4,2000.4,5.8287316]
[1772579563234,3.97695208,2001.4,2000.3,0.88553977]
[1772579564039,3.97695208,2001.4,2000.2,0.00543678]
[1772579566437,3.97695208,2001.4,2000.3,6.36929597]
[1772579566643,4.00287801,2001.3,2000.5,0.52465724]
[1772579568142,4.00287801,2001.3,2000.4,0.24996]
[1772579568441,4.00287801,2001.3,2000.5,5.85460715]
[1772579568641,4.00287801,2001.3,2000.4,0.24996]
[1772579569040,4.00287801,2001.3,2000.2,4.04655996]
[1772579569244,4.25272801,2001.3,2000.2,4.04655996]
[1772579569439,4.25272801,2001.3,2000.2,0.00543678]
[1772579569838,4.25272801,2001.3,1999.9,4.29114318]
[1772579570846,4.25272801,2001.3,1999.9,4.29672565]
[1772579571247,4.25272801,2001.3,1999.9,0.25560247]
[1772579573956,4.25272801,2001.3,1999.9,0.00558247]
[1772579574858,4.13969288,2000.9,1999.9,0.00558247]
[1772579575054,4.13969288,2000.7,1999.9,0.00558247]
[1772579575250,4.13969288,2000.7,1999.5,6.09795718]
[1772579575251,4.13969288,2000.5,1999.5,4.04112318]
[1772579575453,4.13969288,2000.5,1999.4,0.25008]
[1772579575856,4.13969288,2000.3,1999.2,3.90215986]
[1772579576055,4.13969288,2000.3,1999.3,3.90215986]
[1772579576357,4.13969288,2000.3,1999.3,3.90629646]
[1772579576659,4.13969288,2000.1,1999.3,0.0041366]
[1772579577061,4.13969288,2000.1,1999.0,4.04112318]
[1772579577257,4.13969288,2000.1,1998.9,8.19342304]
[1772579577462,4.13969288,2000.1,1998.9,4.15229986]
[1772579577858,4.13969288,2000.1,1998.9,0.25014]
[1772579578059,4.13969288,1999.9,1998.9,0.00396588]
[1772579578361,4.13969288,1999.9,1998.9,3.90612574]
[1772579578654,4.13969288,1999.9,1998.9,0.00396588]
[1772579578855,4.13969288,1999.9,1998.5,3.90215986]
[1772579579058,4.13969288,1999.7,1998.5,3.90215986]
[1772579579259,4.13969288,1999.5,1998.5,3.90215986]
[1772579579955,4.13969288,1999.5,1998.5,3.90813885]
[1772579580263,4.13969288,1999.4,1998.5,3.90813885]
[1772579580759,4.13969288,1999.4,1998.6,9.91882725]
[1772579580957,4.13969288,1999.4,1998.7,3.90215986]
[1772579581159,4.13969288,1999.4,1998.6,0.25019]
[1772579581355,4.13969288,1999.4,1998.6,4.15234986]
[1772579581762,4.13969288,1999.4,1998.5,0.00597899]
[1772579581964,4.13969288,1999.2,1998.5,4.15833885]
[1772579582161,4.14585469,1999.2,1998.5,4.15833885]
[1772579584267,4.14585469,1999.2,1998.5,0.25617899]
[1772579585067,4.14585469,1999.2,1998.5,4.15833885]
[1772579586066,4.14585469,1999.2,1998.5,0.25617899]
[1772579586459,4.14585469,1999.2,1998.5,4.15833885]
[1772579586663,4.14585469,1999.2,1998.5,0.25617899]
[1772579587664,4.14585469,1999.2,1998.5,0.00597899]
[1772579587866,4.14585469,1999.2,1998.1,4.15240986]
[1772579588470,4.13969288,1999.0,1998.1,4.15240986]
[1772579588969,4.13969288,1999.0,1998.1,0.25586852]
[1772579589966,4.13969288,1999.0,1998.1,0.00561852]
[1772579590166,4.13969288,1999.0,1997.8,3.90215986]
[1772579590363,4.13969288,1999.0,1998.0,3.90215986]
[1772579590568,4.13969288,1998.8,1998.0,3.90215986]
[1772579591372,4.13969288,1998.8,1998.0,0.00635808]
[1772579593774,4.13969288,1998.6,1998.0,0.00635808]
[1772579594374,4.13969288,1999.1,1998.4,0.2502]
[1772579594574,4.13969288,1999.1,1998.0,0.00635808]
[1772579594575,4.13969288,1999.1,1998.0,3.90851794]
[1772579595072,4.13969288,1999.1,1998.2,3.90215986]
[1772579596473,4.13969288,1999.1,1998.1,0.25025]
[1772579597875,4.13969288,1999.1,1998.1,4.15240986]
[1772579601378,4.19918936,1999.1,1998.5,4.12403365]
[1772579603881,4.19918936,1999.1,1998.1,4.09469923]
[1772579603882,4.20535117,1999.2,1998.7,4.12403365]
[1772579605674,4.20535117,1999.2,1998.6,0.25019]
[1772579606377,4.20535117,1999.2,1998.2,4.34493923]
[1772579606674,4.19918936,1999.0,1998.1,4.09469923]
[1772579606879,4.19918936,1999.0,1998.0,0.00635808]
[1772579607075,4.19918936,1999.0,1998.0,4.13039173]
[1772579607475,4.19918936,1999.0,1998.0,0.00635808]
[1772579608786,4.19918936,1999.0,1997.8,4.34497923]
[1772579609683,4.19918936,1999.0,1997.8,0.25028]
[1772579609878,4.19918936,1999.0,1997.8,0.00527674]
[1772579610085,4.19918936,1998.7,1997.4,8.21873288]
[1772579610883,4.19918936,1998.7,1997.4,4.09469923]
[1772579611084,4.19918936,1998.6,1997.4,0.00473935]
[1772579611279,4.19918936,1998.4,1997.4,0.00473935]
[1772579613479,4.19918936,1998.4,1997.1,4.09469923]
[1772579613682,4.19918936,1998.2,1997.1,4.12403365]
[1772579614183,8.022,1998.3,1996.8,4.12403365]
[1772579614184,4.19918936,1998.0,1996.8,4.12403365]
[1772579614581,4.19918936,1998.0,1996.8,4.12958651]
[1772579616083,4.19918936,1998.0,1996.8,0.00555286]
[1772579616588,4.19918936,1997.8,1996.8,0.00555286]
[1772579616782,4.20418663,1997.8,1996.8,0.00555286]
[1772579617987,4.20418663,1997.8,1996.5,4.12403365]
[1772579618186,4.20418663,1997.8,1996.3,4.37450365]
[1772579618391,4.19918936,1997.6,1996.3,4.37450365]
[1772579619092,4.19918936,1997.4,1996.3,4.37964957]
[1772579619386,4.19918936,1997.4,1996.3,4.12917957]
[1772579619782,4.19918936,1997.3,1995.9,4.09469923]
[1772579619986,4.44953936,1997.3,1995.8,4.12403365]
[1772579620795,4.44953936,1997.3,1995.8,4.12926968]
[1772579620988,4.19918936,1997.1,1995.8,4.12926968]
[1772579624997,4.19918936,1997.1,1996.0,4.12403365]
[1772579625298,4.19918936,1997.0,1996.2,4.12403365]
[1772579630488,4.05314515,1996.9,1996.4,3.99140852]
[1772579631595,4.05314515,1996.9,1996.0,3.99140852]
[1772579634396,4.1739255,1997.8,1996.2,3.99140852]
[1772579634397,4.05314515,1997.3,1996.2,3.99140852]
[1772579634593,4.05314515,1997.2,1996.4,3.99140852]
[1772579635697,4.05314515,1997.2,1995.9,3.99140852]
[1772579635897,4.05314515,1997.2,1996.1,3.99140852]
[1772579636497,4.05314515,1997.0,1996.0,0.25051]
[1772579636895,4.05314515,1997.0,1995.8,0.00523603]
[1772579637102,4.05314515,1996.8,1995.8,3.99664455]
[1772579637402,4.05314515,1996.6,1995.8,3.99664455]
[1772579637902,4.05314515,1996.6,1995.8,4.24717455]
[1772579638602,4.05314515,1996.9,1995.8,4.24717455]
[1772579638804,4.05314515,1996.8,1995.8,4.24717455]
[1772579644905,4.05314515,1996.8,1995.8,0.25576603]
[1772579645404,4.05314515,1996.6,1995.8,0.00523603]
[1772579645609,0.41100194,1996.7,1995.1,8.87558318]
[1772579645610,4.05314515,1996.0,1995.1,3.54541399]
[1772579645810,4.05314515,1995.8,1994.9,3.54541399]
[1772579646605,4.05314515,1995.7,1994.9,0.0045531]
[1772579647414,4.05314515,1995.5,1994.9,0.0045531]
[1772579647908,4.05314515,1995.5,1994.5,3.93271263]
[1772579648113,4.05314515,1995.5,1994.3,3.68202263]
[1772579648114,4.05314515,1995.4,1994.3,3.68202263]
[1772579648713,4.05314515,1995.4,1994.2,0.83272641]
[1772579648907,4.05314515,1995.4,1994.2,0.83667758]
[1772579649113,4.05314515,1995.2,1994.2,0.83667758]
[1772579649413,4.05314515,1995.0,1994.2,0.83667758]
[1772579649711,4.05314515,1994.8,1994.2,0.83667758]
[1772579649907,4.05314515,1994.8,1994.2,4.44335597]
[1772579650112,12.08914515,1994.8,1994.2,4.44335597]
[1772579650313,4.05314515,1994.7,1994.2,4.44335597]
[1772579650702,4.05314515,1994.7,1994.2,0.83667758]
[1772579651308,4.05314515,1994.7,1994.2,4.43485733]
[1772579651615,8.038,1994.8,1994.2,4.43485733]
[1772579651809,4.05314515,1995.1,1994.2,4.43485733]
[1772579652014,12.09214515,1995.1,1994.2,4.43485733]
[1772579652209,4.05314515,1995.0,1994.2,4.43485733]
[1772579652410,4.05314515,1995.3,1994.4,3.58771943]
[1772579653109,4.05314515,1995.5,1994.6,3.59221614]
[1772579653310,4.05314515,1995.5,1994.8,3.58193073]
[1772579655813,4.05314515,1995.5,1994.3,3.36847386]
[1772579659419,3.88183168,1995.3,1994.3,3.36847386]
[1772579659618,3.88183168,1995.1,1994.3,3.36847386]
[1772579661023,3.88183168,1995.4,1994.5,3.30282924]
[1772579662223,0.25506852,1995.8,1994.7,3.29278381]
[1772579662224,3.88183168,1995.6,1994.7,3.29278381]
[1772579664628,3.88183168,1995.6,1994.7,3.24572692]
[1772579669331,3.88183168,1995.5,1994.7,3.24572692]
[1772579669736,3.88183168,1995.5,1994.9,3.18233562]
[1772579671438,3.88183168,1995.5,1994.7,3.1604428]
[1772579672738,0.00451852,1995.8,1994.7,3.1604428]
[1772579672939,3.8863502,1995.8,1994.7,3.1604428]
[1772579673535,0.00451852,1995.8,1995.2,3.12798906]
[1772579673742,3.88183168,1996.0,1995.4,3.12798906]
[1772579673938,3.88183168,1996.2,1995.4,3.12798906]
[1772579674747,3.88606759,1996.2,1995.4,3.12798906]
[1772579675243,3.88606759,1996.2,1995.3,0.2506]
[1772579675542,3.88606759,1996.2,1995.2,3.0952046]
[1772579675740,3.88183168,1996.0,1995.2,3.0952046]
[1772579677238,3.88183168,1996.0,1995.0,3.09583095]
[1772579678135,3.88183168,1996.0,1995.2,3.07643843]
[1772579679235,3.88183168,1996.0,1994.8,3.07848642]
[1772579680143,3.88183168,1995.8,1994.8,3.07848642]
[1772579680338,3.88183168,1995.7,1994.8,3.07848642]
[1772579683448,3.88183168,1995.6,1994.8,3.07848642]
[1772579685444,3.88183168,1995.6,1994.4,6.09795718]
[1772579685445,3.88183168,1995.6,1995.0,3.11872477]
[1772579690847,3.88183168,1995.6,1994.9,3.31942852]
[1772579692246,7.71214789,1996.0,1995.3,3.04107148]
[1772579692551,3.54321966,1996.0,1995.4,0.25059]
[1772579692747,3.54321966,1996.0,1995.5,3.04107148]
[1772579694452,3.54321966,1996.0,1995.4,3.26938638]
[1772579694952,3.54321966,1996.0,1995.4,0.25059]
[1772579695548,3.54321966,1996.0,1995.0,6.34858718]
[1772579695851,3.54321966,1996.0,1995.1,2.98019411]
[1772579698751,8.30373591,1996.2,1994.8,3.07270263]
[1772579698752,3.54321966,1995.8,1994.8,3.07270263]
[1772579698955,3.54321966,1995.6,1994.8,3.07270263]
[1772579700454,3.54321966,1995.5,1994.8,3.07270263]
[1772579701451,3.54321966,1996.0,1995.2,3.52853577]
[1772579701656,3.54321966,1996.1,1995.2,3.52853577]
[1772579702258,3.54321966,1996.1,1995.0,12.26367718]
[1772579702455,3.54321966,1996.1,1995.1,3.52853577]
[1772579702656,3.54745557,1996.2,1995.1,3.52853577]
[1772579702854,0.00423591,1996.2,1995.5,3.52853577]
[1772579703458,0.00277544,1996.2,1995.7,3.52853577]
[1772579703761,3.54321966,1996.8,1995.7,3.52853577]
[1772579704162,3.54321966,1996.8,1995.9,3.52853577]
[1772579704558,3.54727592,1996.8,1995.9,3.53271459]
[1772579710166,3.54190796,1996.8,1995.9,3.53271459]
[1772579710362,3.54190796,1996.8,1995.9,0.00417882]
[1772579710664,3.54321966,1996.6,1995.5,3.52853577]
[1772579710854,3.54321966,1996.4,1995.5,3.52853577]
[1772579711662,3.54321966,1996.4,1995.5,3.53488889]
[1772579712067,3.54321966,1996.4,1995.7,3.52853577]
[1772579712662,8.077,1996.5,1995.9,3.52853577]
[1772579712862,11.62021966,1996.5,1995.9,3.52853577]
[1772579713556,3.54321966,1996.4,1995.9,3.52853577]
[1772579714966,3.54321966,1996.4,1995.6,3.52853577]
[1772579715364,3.54321966,1996.4,1995.5,3.53488889]
[1772579716868,3.54321966,1996.4,1995.7,3.52853577]
[1772579717367,3.54321966,1996.7,1995.9,3.52853577]
[1772579721166,3.54321966,1996.7,1996.1,3.42000579]
[1772579721368,3.54321966,1996.7,1995.7,3.42000579]
[1772579721570,3.81432571,1996.5,1995.5,0.00635312]
[1772579722269,3.56387571,1996.3,1995.5,0.00635312]
[1772579722668,3.56387571,1996.3,1995.5,3.58038369]
[1772579724666,3.56387571,1996.3,1995.5,0.00635312]
[1772579728371,3.56387571,1996.3,1995.2,3.57403057]
[1772579729272,3.56387571,1996.3,1995.2,3.57914588]
[1772579729670,3.56387571,1996.1,1995.2,3.57914588]
[1772579729973,4.16892823,1996.4,1995.2,0.00511531]
[1772579729974,3.56387571,1995.9,1995.2,0.00511531]
[1772579730373,3.56387571,1995.9,1994.8,4.12024981]
[1772579730570,3.56387571,1995.9,1994.7,3.57403057]
[1772579730770,3.56387571,1995.7,1994.7,3.57403057]
[1772579730967,3.56387571,1995.7,1994.7,4.12024981]
[1772579731270,3.56387571,1995.3,1994.2,4.40675698]
[1772579731568,3.56387571,1995.1,1994.2,4.41173687]
[1772579733072,3.56387571,1995.1,1994.2,0.8377063]
[1772579734369,3.56387571,1995.1,1994.2,4.41173687]
[1772579735672,3.56387571,1995.1,1994.2,0.8377063]
[1772579736669,3.56387571,1995.1,1993.8,3.57403057]
[1772579737677,3.56387571,1994.7,1993.8,0.0035448]
[1772579737975,3.56387571,1994.5,1993.8,0.0035448]
[1772579739076,3.56387571,1994.5,1993.8,3.57757537]
[1772579739581,11.64587571,1994.6,1993.8,3.57757537]
[1772579740377,3.56387571,1994.8,1994.0,3.57403057]
[1772579744985,3.56387571,1995.1,1994.2,3.57403057]
[1772579752681,3.56387571,1995.1,1994.1,0.25075]
[1772579752682,3.56387571,1995.1,1994.1,3.52239597]
[1772579752883,3.3858824,1994.9,1993.9,3.52239597]
[1772579753588,3.3858824,1994.9,1993.8,0.0035448]
[1772579753987,3.3858824,1994.9,1993.8,3.52594077]
[1772579754389,3.3858824,1994.7,1993.8,3.52594077]
[1772579757685,3.3858824,1994.7,1993.8,0.0035448]
[1772579758194,3.3858824,1994.7,1993.8,3.52594077]
[1772579759289,3.3858824,1994.5,1993.8,0.0035448]
[1772579760594,3.3858824,1994.7,1993.8,3.52594077]
[1772579760794,3.84030949,1994.6,1993.8,3.52594077]
[1772579760994,3.3858824,1994.6,1993.8,3.52594077]
[1772579764699,3.3858824,1994.4,1993.8,0.0035448]
[1772579764895,3.3858824,1994.6,1993.8,3.77672077]
[1772579765603,3.3858824,1994.4,1993.8,0.0035448]
[1772579766902,0.44988546,1994.3,1993.8,0.0035448]
[1772579767098,3.3858824,1994.1,1993.5,3.52239597]
[1772579768004,3.3858824,1994.1,1993.5,3.52592668]
[1772579768207,3.3858824,1993.9,1993.1,3.52239597]
[1772579769101,3.39099881,1993.9,1993.1,3.52793948]
[1772579769908,3.3858824,1993.7,1992.9,3.52239597]
[1772579770101,3.3858824,1993.5,1992.9,3.52239597]
[1772579770499,3.3858824,1993.8,1992.9,3.77329597]
[1772579770805,3.39099881,1993.9,1992.9,3.77329597]
[1772579770995,3.39099881,1993.9,1992.9,3.77853627]
[1772579773400,0.00511641,1993.9,1992.9,3.77853627]
[1772579773601,3.39099881,1993.9,1992.9,3.77853627]
[1772579773908,3.3858824,1993.4,1992.5,3.52239597]
[1772579774207,3.3858824,1993.2,1992.5,3.52239597]
[1772579774396,3.3858824,1993.4,1992.5,3.52239597]
[1772579774902,3.3858824,1993.4,1992.5,3.52855447]
[1772579775304,11.4918824,1993.5,1992.5,3.52855447]
[1772579776905,3.3858824,1993.4,1992.5,3.52855447]
[1772579790423,3.44900326,1993.3,1992.5,3.52855447]
[1772579791525,3.44900326,1993.2,1992.3,3.41579906]
[1772579791730,3.44900326,1993.2,1992.0,3.41579906]
[1772579792525,3.44900326,1993.2,1992.0,3.4203904]
[1772579792730,3.44900326,1992.9,1992.0,3.4203904]
[1772579792928,3.44900326,1992.7,1992.0,3.4203904]
[1772579797129,3.44900326,1992.7,1991.7,3.41579906]
[1772579797535,11.56100326,1992.7,1991.7,3.41579906]
[1772579798036,3.44900326,1992.6,1991.7,3.41945906]
[1772579798935,3.44900326,1992.7,1991.9,3.41579906]
[1772579810043,3.44900326,1992.7,1991.7,3.21661143]
[1772579810245,3.27709339,1992.6,1991.7,3.21661143]
[1772579811146,3.27709339,1992.9,1992.1,3.21295143]
[1772579812248,3.27709339,1993.0,1992.5,3.21295143]
[1772579813055,3.27709339,1993.1,1992.5,3.21295143]
[1772579813552,3.27709339,1993.4,1992.5,3.21295143]
[1772579815855,3.27709339,1993.4,1992.7,3.21295143]
[1772579823854,4.16892823,1993.8,1992.7,3.21295143]
[1772579824054,3.27709339,1993.6,1992.9,3.21295143]
[1772579828960,0.00511641,1993.9,1993.1,3.21295143]
[1772579829163,0.00511641,1993.9,1993.1,3.21935606]
[1772579829664,3.2822098,1993.9,1993.1,3.21935606]
[1772579829964,3.2822098,1993.9,1993.4,3.21295143]
[1772579832570,0.00511641,1993.9,1993.4,3.21295143]
[1772579833869,3.27709339,1994.1,1993.6,3.21295143]
[1772579834173,3.27709339,1994.1,1993.1,0.00640463]
[1772579834174,3.27709339,1994.4,1993.8,3.21295143]
[1772579834974,3.28257362,1994.4,1993.8,3.21295143]
[1772579841770,3.28257362,1994.4,1993.4,2.99213827]
[1772579842171,3.24459193,1994.2,1993.4,2.99213827]
[1772579843876,3.24459193,1994.2,1993.6,2.99213827]
[1772579845575,3.25007216,1994.4,1993.6,2.99213827]
[1772579855382,0.00548023,1994.4,1993.8,2.99213827]
[1772579855689,3.25007216,1994.4,1993.8,2.99213827]
[1772579858787,3.24459193,1994.7,1994.0,2.99213827]
[1772579858986,3.24459193,1994.7,1994.2,2.99213827]
[1772579859790,3.25070412,1994.7,1994.2,2.99213827]
[1772579860383,3.25070412,1994.7,1993.6,14.19783329]
[1772579860384,3.24459193,1994.5,1994.0,2.99213827]
[1772579860892,3.24459193,1994.4,1993.7,2.99213827]
[1772579861089,3.24459193,1994.3,1993.7,2.99213827]
[1772579864593,3.24459193,1994.3,1993.3,6.21668675]
[1772579864594,3.24459193,1994.3,1993.4,2.99213827]
[1772579867295,3.24459193,1994.3,1993.4,3.24296827]
[1772579867497,3.24459193,1994.2,1993.4,3.24296827]
[1772579867696,3.24459193,1994.2,1993.5,2.99213827]
[1772579869795,2.90756386,1994.4,1993.7,3.0667092]
[1772579878500,2.90756386,1994.5,1993.9,3.0667092]
[1772579881002,2.90756386,1994.5,1993.8,3.3174992]
[1772579883805,2.90756386,1994.5,1993.8,0.25079]
[1772579884308,2.90756386,1994.3,1993.5,3.0667092]
[1772579884508,1.81197355,1994.0,1993.5,3.0667092]
[1772579884708,2.90756386,1993.9,1993.5,3.0667092]
[1772579884910,2.90756386,1993.7,1993.3,3.0667092]
[1772579886314,1.81197355,1993.6,1993.2,3.0667092]
[1772579886516,1.81197355,1993.4,1993.1,3.07311383]
[1772579886711,4.71953741,1993.2,1992.9,3.0667092]
[1772579886909,4.71953741,1993.2,1992.6,3.0667092]
[1772579887111,2.90756386,1993.1,1992.6,3.0667092]
[1772579887415,1.81197355,1993.0,1992.6,3.0667092]
[1772579887613,2.90756386,1992.9,1992.6,3.07173473]
[1772579887913,2.90756386,1992.9,1992.6,0.00502553]
[1772579888214,2.90756386,1992.9,1992.5,3.0667092]
[1772579889017,2.90756386,1992.9,1992.5,3.07246879]
[1772579889619,2.91342739,1993.0,1992.5,3.07246879]
[1772579890713,2.91342739,1993.0,1992.5,0.00575959]
[1772579892120,2.91342739,1993.0,1992.5,3.07246879]
[1772579892920,2.91342739,1993.0,1992.5,0.00575959]
[1772579893122,2.91342739,1993.0,1992.5,3.07246879]
[1772579893622,2.91342739,1993.0,1992.5,0.00575959]
[1772579894926,2.90756386,1992.8,1992.0,3.3177192]
[1772579895827,2.90756386,1992.8,1992.0,3.32236665]
[1772579901932,0.00586353,1993.0,1992.0,3.32236665]
[1772579902140,2.79576545,1993.0,1992.0,3.32236665]
[1772579903438,2.78990192,1992.9,1992.0,3.32236665]
[1772579905140,8.32586353,1993.0,1992.0,3.32236665]
[1772579905141,2.78990192,1992.7,1992.0,3.32236665]
[1772579906038,3.04084192,1992.7,1991.7,2.93168246]
[1772579906236,2.78990192,1992.4,1991.3,2.93168246]
[1772579906444,2.78990192,1992.1,1991.0,2.93168246]
[1772579907144,2.78990192,1992.1,1991.0,2.93650343]
[1772579907347,2.78990192,1991.9,1991.0,2.93650343]
[1772579907546,8.32,1991.8,1991.2,2.93168246]
[1772579907746,11.10990192,1991.8,1991.2,2.93168246]
[1772579908348,11.11090192,1991.8,1991.2,2.93168246]